[Event "*** SCC Grand Prix: Titled Tuesday Blitz"]
[Site "Chess.com"]
[Date "2020.08.04"]
[Round "10"]
[White "shnitez"]
[Black "Rodalquilar"]
[Result "1-0"]
[WhiteElo "2489"]
[BlackElo "2623"]
[TimeControl "180+1"]
[EndTime "15:40:01 PDT"]
[Termination "shnitez won on time"]

1. c4 {[%clk 0:03:00.9]} 1... d6 {[%clk 0:02:59.5]} 2. Nf3 {[%clk 0:02:59.3]}
2... f5 {[%clk 0:02:59.8]} 3. Nc3 {[%clk 0:02:55.5]} 3... Nf6 {[%clk 0:03:00.2]}
4. d4 {[%clk 0:02:54.1]} 4... g6 {[%clk 0:03:00.7]} 5. b4 {[%clk 0:02:46.6]}
5... e5 {[%clk 0:02:58]} 6. Bb2 {[%clk 0:02:40.9]} 6... e4 {[%clk 0:02:56.8]} 7.
Ng1 {[%clk 0:02:36.6]} 7... d5 {[%clk 0:02:47.7]} 8. c5 {[%clk 0:02:15.5]} 8...
e3 {[%clk 0:02:45]} 9. fxe3 {[%clk 0:02:00.9]} 9... Ng4 {[%clk 0:02:44.8]} 10.
Qd3 {[%clk 0:01:55.7]} 10... Bh6 {[%clk 0:02:42.9]} 11. Bc1 {[%clk 0:01:44]}
11... Qe7 {[%clk 0:02:37.7]} 12. Nxd5 {[%clk 0:01:43.1]} 12... Qf7 {[%clk
0:02:34.9]} 13. e4 {[%clk 0:01:37.4]} 13... Bxc1 {[%clk 0:02:22.2]} 14. Rxc1
{[%clk 0:01:38.3]} 14... fxe4 {[%clk 0:02:16.8]} 15. Qxe4+ {[%clk 0:01:37.8]}
15... Kd8 {[%clk 0:02:02]} 16. Nf4 {[%clk 0:01:18.9]} 16... c6 {[%clk
0:01:21.5]} 17. d5 {[%clk 0:01:13.6]} 17... Bf5 {[%clk 0:00:43.2]} 18. Qd4
{[%clk 0:01:03.1]} 18... Re8 {[%clk 0:00:36.9]} 19. dxc6+ {[%clk 0:00:46.3]}
19... Kc8 {[%clk 0:00:37.4]} 20. cxb7+ {[%clk 0:00:45.6]} 20... Qxb7 {[%clk
0:00:37.4]} 21. c6 {[%clk 0:00:27.1]} 21... Qb6 {[%clk 0:00:18]} 22. Qxb6 {[%clk
0:00:18.7]} 22... axb6 {[%clk 0:00:18.9]} 23. Nd5 {[%clk 0:00:19.6]} 23... Rxa2
{[%clk 0:00:16.8]} 24. Nxb6+ {[%clk 0:00:19.2]} 24... Kc7 {[%clk 0:00:17.3]} 25.
Nd5+ {[%clk 0:00:19.2]} 25... Kd6 {[%clk 0:00:17.9]} 26. Nc3 {[%clk 0:00:14.2]}
26... Rb2 {[%clk 0:00:16.4]} 27. b5 {[%clk 0:00:11.4]} 27... Ne3 {[%clk
0:00:15.5]} 28. Nf3 {[%clk 0:00:11]} 28... Bd3 {[%clk 0:00:09.6]} 29. Kf2 {[%clk
0:00:08.1]} 29... Bxb5 {[%clk 0:00:07.8]} 30. Nxb5+ {[%clk 0:00:07]} 30... Rxb5
{[%clk 0:00:08.7]} 31. c7 {[%clk 0:00:07.9]} 31... Nc6 {[%clk 0:00:09.3]} 32.
c8=Q {[%clk 0:00:07.2]} 32... Rxc8 {[%clk 0:00:05.7]} 33. Kxe3 {[%clk
0:00:07.1]} 33... g5 {[%clk 0:00:06]} 34. h3 {[%clk 0:00:06.4]} 34... h5 {[%clk
0:00:05.8]} 35. g4 {[%clk 0:00:06.2]} 35... Rf8 {[%clk 0:00:05.1]} 36. gxh5
{[%clk 0:00:05.6]} 36... Rb3+ {[%clk 0:00:05.5]} 37. Kf2 {[%clk 0:00:05.6]}
37... Ne5 {[%clk 0:00:04.9]} 38. Bg2 {[%clk 0:00:05.5]} 38... g4 {[%clk
0:00:04.9]} 39. hxg4 {[%clk 0:00:05.4]} 39... Nxg4+ {[%clk 0:00:05.8]} 40. Kg3
{[%clk 0:00:06.3]} 40... Ne3 {[%clk 0:00:05.7]} 41. Rhd1+ {[%clk 0:00:05.8]}
41... Ke7 {[%clk 0:00:02]} 42. Rd3 {[%clk 0:00:05.4]} 42... Rg8+ {[%clk
0:00:01.7]} 43. Kf2 {[%clk 0:00:04.3]} 43... Rxd3 {[%clk 0:00:01.3]} 44. exd3
{[%clk 0:00:03.5]} 44... Nxg2 {[%clk 0:00:01.8]} 45. Rg1 {[%clk 0:00:03.5]}
45... Rh8 {[%clk 0:00:02.4]} 46. Rxg2 {[%clk 0:00:03.6]} 46... Rxh5 {[%clk
0:00:03.1]} 47. Ke3 {[%clk 0:00:04.5]} 47... Ra5 {[%clk 0:00:04]} 48. Re2 {[%clk
0:00:05.4]} 48... Ra1 {[%clk 0:00:04.9]} 49. Nd4 {[%clk 0:00:06]} 49... Kd6
{[%clk 0:00:05.8]} 50. Nc2 {[%clk 0:00:06.5]} 50... Ra8 {[%clk 0:00:05.9]} 51.
Kd2 {[%clk 0:00:07.4]} 51... Ra2 {[%clk 0:00:05.7]} 52. Kc3 {[%clk 0:00:06.8]}
52... Ra8 {[%clk 0:00:06]} 53. Ne3 {[%clk 0:00:07]} 53... Rc8+ {[%clk
0:00:06.9]} 54. Nc4+ {[%clk 0:00:07.5]} 54... Kd5 {[%clk 0:00:06.9]} 55. Re4
{[%clk 0:00:08.4]} 55... Rf8 {[%clk 0:00:06.2]} 56. Re5+ {[%clk 0:00:08.5]}
56... Kc6 {[%clk 0:00:06.1]} 57. Rh5 {[%clk 0:00:09.4]} 57... Rf1 {[%clk
0:00:06.1]} 58. Ne5+ {[%clk 0:00:09.1]} 58... Kd5 {[%clk 0:00:05.8]} 59. Nc4+
{[%clk 0:00:10]} 59... Kc6 {[%clk 0:00:06]} 60. Kd4 {[%clk 0:00:10.1]} 60...
Rf4+ {[%clk 0:00:05.7]} 61. Ke3 {[%clk 0:00:10.3]} 61... Rf1 {[%clk 0:00:06.4]}
62. d4 {[%clk 0:00:09.8]} 62... Re1+ {[%clk 0:00:05.9]} 63. Kd2 {[%clk
0:00:09.7]} 63... Rg1 {[%clk 0:00:06.5]} 64. Ne3 {[%clk 0:00:09.5]} 64... Ra1
{[%clk 0:00:06.1]} 65. Rh6+ {[%clk 0:00:09.4]} 65... Kb5 {[%clk 0:00:06.3]} 66.
Kd3 {[%clk 0:00:10.3]} 66... Ra3+ {[%clk 0:00:06.1]} 67. Ke4 {[%clk 0:00:10.7]}
67... Ra8 {[%clk 0:00:06.9]} 68. d5 {[%clk 0:00:11.1]} 68... Re8+ {[%clk
0:00:07.6]} 69. Kd4 {[%clk 0:00:10.6]} 69... Ra8 {[%clk 0:00:07.1]} 70. Nf5
{[%clk 0:00:10.3]} 70... Ra4+ {[%clk 0:00:06.7]} 71. Ke5 {[%clk 0:00:10.7]}
71... Ra1 {[%clk 0:00:07.6]} 72. Nd4+ {[%clk 0:00:09.6]} 72... Kc5 {[%clk
0:00:07.6]} 73. Rc6+ {[%clk 0:00:08.8]} 73... Kb4 {[%clk 0:00:08]} 74. Rc2
{[%clk 0:00:09.7]} 74... Re1+ {[%clk 0:00:07.5]} 75. Ne2 {[%clk 0:00:08.9]}
75... Kb3 {[%clk 0:00:06.7]} 76. Rd2 {[%clk 0:00:08.6]} 76... Kc4 {[%clk
0:00:05.3]} 77. d6 {[%clk 0:00:07.9]} 77... Rh1 {[%clk 0:00:06.2]} 78. d7 {[%clk
0:00:07.6]} 78... Rh5+ {[%clk 0:00:06.4]} 79. Ke4 {[%clk 0:00:07.4]} 79... Rh4+
{[%clk 0:00:06.8]} 80. Nf4 {[%clk 0:00:08.1]} 80... Rh8 {[%clk 0:00:03.6]} 81.
d8=Q {[%clk 0:00:07.9]} 81... Rxd8 {[%clk 0:00:04.5]} 82. Rxd8 {[%clk
0:00:08.8]} 1-0

[Event "*** SCC Grand Prix: Titled Tuesday Blitz"]
[Site "Chess.com"]
[Date "2020.08.04"]
[Round "10"]
[White "OK97"]
[Black "Fighter008"]
[Result "1/2-1/2"]
[WhiteElo "2801"]
[BlackElo "2641"]
[TimeControl "180+1"]
[EndTime "15:40:13 PDT"]
[Termination "Game drawn - insufficient material"]

1. Nf3 {[%clk 0:03:00.9]} 1... Nf6 {[%clk 0:02:56.9]} 2. g3 {[%clk 0:03:01.2]}
2... g6 {[%clk 0:02:57]} 3. b3 {[%clk 0:03:01.1]} 3... Bg7 {[%clk 0:02:57.2]} 4.
Bb2 {[%clk 0:03:01.8]} 4... d6 {[%clk 0:02:57.3]} 5. d4 {[%clk 0:03:01.5]} 5...
O-O {[%clk 0:02:57.3]} 6. Bg2 {[%clk 0:03:01.6]} 6... a5 {[%clk 0:02:57.9]} 7.
a4 {[%clk 0:02:59]} 7... e5 {[%clk 0:02:57.1]} 8. dxe5 {[%clk 0:02:58.6]} 8...
Nfd7 {[%clk 0:02:57.3]} 9. Nc3 {[%clk 0:02:56.6]} 9... dxe5 {[%clk 0:02:57]} 10.
Qc1 {[%clk 0:02:41.2]} 10... Na6 {[%clk 0:02:55.9]} 11. O-O {[%clk 0:02:40.9]}
11... Nb4 {[%clk 0:02:53.8]} 12. Rd1 {[%clk 0:02:37.3]} 12... Qe7 {[%clk
0:02:53.1]} 13. Nd2 {[%clk 0:02:27.6]} 13... Nc5 {[%clk 0:02:51.8]} 14. Ba3
{[%clk 0:02:11]} 14... c6 {[%clk 0:02:46.5]} 15. Nde4 {[%clk 0:01:58]} 15... Bf5
{[%clk 0:02:45.3]} 16. Nxc5 {[%clk 0:01:43]} 16... Qxc5 {[%clk 0:02:46.2]} 17.
Ne4 {[%clk 0:01:43.6]} 17... Qxc2 {[%clk 0:02:39.5]} 18. Qxc2 {[%clk 0:01:37.7]}
18... Nxc2 {[%clk 0:02:37.5]} 19. Bxf8 {[%clk 0:01:38.2]} 19... Kxf8 {[%clk
0:02:31.4]} 20. Rab1 {[%clk 0:01:32.9]} 20... Nd4 {[%clk 0:02:28.2]} 21. Rb2
{[%clk 0:01:22.1]} 21... Bxe4 {[%clk 0:02:21.6]} 22. Bxe4 {[%clk 0:01:21.8]}
22... f5 {[%clk 0:02:22.2]} 23. Bg2 {[%clk 0:01:07]} 23... e4 {[%clk 0:02:22.4]}
24. Kf1 {[%clk 0:01:07.5]} 24... Ke7 {[%clk 0:02:13.3]} 25. b4 {[%clk
0:00:59.6]} 25... Ne6 {[%clk 0:02:02.9]} 26. Rbb1 {[%clk 0:00:58.3]} 26... axb4
{[%clk 0:01:54]} 27. Rxb4 {[%clk 0:00:59.2]} 27... Nc5 {[%clk 0:01:54.7]} 28. f3
{[%clk 0:00:46.6]} 28... Rxa4 {[%clk 0:01:45.1]} 29. Rxa4 {[%clk 0:00:39.7]}
29... Nxa4 {[%clk 0:01:46]} 30. fxe4 {[%clk 0:00:40.4]} 30... fxe4 {[%clk
0:01:44.6]} 31. Rb1 {[%clk 0:00:29.6]} 31... Nc5 {[%clk 0:01:41.9]} 32. Ke1
{[%clk 0:00:26]} 32... b5 {[%clk 0:01:37.9]} 33. Kd1 {[%clk 0:00:26.4]} 33...
Kd6 {[%clk 0:01:34]} 34. Kc2 {[%clk 0:00:26.4]} 34... Ke5 {[%clk 0:01:32.1]} 35.
Rf1 {[%clk 0:00:25.2]} 35... Bf6 {[%clk 0:01:29.4]} 36. Bh3 {[%clk 0:00:23.4]}
36... Na6 {[%clk 0:01:23.8]} 37. Rd1 {[%clk 0:00:21.6]} 37... Nb4+ {[%clk
0:01:23.6]} 38. Kb3 {[%clk 0:00:20.4]} 38... Nd5 {[%clk 0:01:23.7]} 39. Bd7
{[%clk 0:00:20.6]} 39... Kd6 {[%clk 0:01:13.5]} 40. Be8 {[%clk 0:00:21]} 40...
b4 {[%clk 0:01:08.5]} 41. Bf7 {[%clk 0:00:19.2]} 41... Kc5 {[%clk 0:01:06.9]}
42. Bg8 {[%clk 0:00:18]} 42... h6 {[%clk 0:00:59.3]} 43. Rf1 {[%clk 0:00:18.2]}
43... Be5 {[%clk 0:00:56.1]} 44. Bf7 {[%clk 0:00:11.7]} 44... Nc3 {[%clk
0:00:54]} 45. Bxg6 {[%clk 0:00:09.6]} 45... Nxe2 {[%clk 0:00:50]} 46. Bxe4
{[%clk 0:00:09.9]} 46... Nd4+ {[%clk 0:00:50.7]} 47. Ka4 {[%clk 0:00:05.5]}
47... Nb5 {[%clk 0:00:49.7]} 48. Kb3 {[%clk 0:00:05]} 48... Nd4+ {[%clk
0:00:49.3]} 49. Ka4 {[%clk 0:00:05.5]} 49... Ne2 {[%clk 0:00:49.4]} 50. Bd3
{[%clk 0:00:05]} 50... Nc3+ {[%clk 0:00:47.3]} 51. Kb3 {[%clk 0:00:05.2]} 51...
Kd4 {[%clk 0:00:45.3]} 52. Bc2 {[%clk 0:00:05.5]} 52... c5 {[%clk 0:00:44.5]}
53. Rf8 {[%clk 0:00:05.7]} 53... c4+ {[%clk 0:00:43.3]} 54. Kb2 {[%clk
0:00:06.2]} 54... Nd5 {[%clk 0:00:32.1]} 55. Rd8 {[%clk 0:00:06.2]} 55... Kc5+
{[%clk 0:00:31.7]} 56. Kb1 {[%clk 0:00:05.6]} 56... b3 {[%clk 0:00:29.5]} 57.
Bg6 {[%clk 0:00:04.8]} 57... Nc3+ {[%clk 0:00:28.3]} 58. Kc1 {[%clk 0:00:05.2]}
58... Kb4 {[%clk 0:00:23.1]} 59. Re8 {[%clk 0:00:04.7]} 59... Bd4 {[%clk
0:00:21.8]} 60. Kd2 {[%clk 0:00:04.5]} 60... Nb5 {[%clk 0:00:19.1]} 61. Rb8
{[%clk 0:00:04.8]} 61... c3+ {[%clk 0:00:19.2]} 62. Kc1 {[%clk 0:00:03.5]} 62...
Be5 {[%clk 0:00:17.4]} 63. Rb7 {[%clk 0:00:03.2]} 63... Bf6 {[%clk 0:00:10.6]}
64. Bd3 {[%clk 0:00:03.2]} 64... Bg5+ {[%clk 0:00:10.5]} 65. Kd1 {[%clk
0:00:03.7]} 65... c2+ {[%clk 0:00:09.4]} 66. Bxc2 {[%clk 0:00:04.3]} 66... bxc2+
{[%clk 0:00:10.3]} 67. Kxc2 {[%clk 0:00:05.2]} 67... Kc5 {[%clk 0:00:11.2]} 68.
Rh7 {[%clk 0:00:04.8]} 68... Nd4+ {[%clk 0:00:11.2]} 69. Kd3 {[%clk 0:00:05.3]}
69... Ne6 {[%clk 0:00:10.4]} 70. Ke4 {[%clk 0:00:04.9]} 70... Kd6 {[%clk
0:00:10.1]} 71. Kf5 {[%clk 0:00:04.7]} 71... Nd4+ {[%clk 0:00:09.5]} 72. Kg6
{[%clk 0:00:04.8]} 72... Ke5 {[%clk 0:00:09.8]} 73. h4 {[%clk 0:00:04.7]} 73...
Bc1 {[%clk 0:00:09.3]} 74. g4 {[%clk 0:00:04.5]} 74... Nf3 {[%clk 0:00:08.7]}
75. Rxh6 {[%clk 0:00:02.7]} 75... Bxh6 {[%clk 0:00:07.2]} 76. Kxh6 {[%clk
0:00:03.6]} 76... Nxh4 {[%clk 0:00:08]} 77. Kh5 {[%clk 0:00:04.4]} 77... Nf3
{[%clk 0:00:07.9]} 78. g5 {[%clk 0:00:05.3]} 78... Nxg5 {[%clk 0:00:07.8]}
1/2-1/2